bitfinex/quotes_ETHUSD_20250924
["timestamp","ask_amount","ask_price","bid_price","bid_amount"]
[1758756846302,16.71927251,4160.2,4160.1,0.002]
[1758756847544,16.47527251,4160.2,4160.1,0.002]
[1758756848048,18.47827251,4160.2,4160.1,0.002]
[1758756848252,18.47827251,4160.2,4160.1,0.2423]
[1758756849649,18.47827251,4160.2,4160.1,0.002]
[1758756849849,18.47827251,4160.2,4160.1,0.6951]
[1758756850265,18.47827251,4160.2,4160.1,0.002]
[1758756850421,18.47827251,4160.2,4160.1,0.6951]
[1758756850422,3.0,4160.2,4160.1,0.6951]
[1758756850751,6.998,4160.2,4160.1,0.6951]
[1758756853323,6.998,4160.2,4160.1,0.002]
[1758756854758,6.998,4160.2,4160.1,0.2432]
[1758756855269,6.998,4160.2,4160.1,0.6919]
[1758756855766,3.0,4160.2,4160.1,0.6919]
[1758756855939,6.998,4160.2,4160.1,0.6919]
[1758756859171,6.998,4160.2,4160.1,3.09568837]
[1758756859344,6.998,4160.2,4160.1,0.6919]
[1758756859670,6.998,4160.2,4159.6,0.002]
[1758756859671,5.40378837,4160.1,4159.6,0.002]
[1758756859854,17.14708386,4159.7,4158.3,0.6899]
[1758756860055,3.0,4159.3,4158.8,0.6899]
[1758756860256,9.001,4159.3,4158.8,0.6899]
[1758756860464,9.81261234,4159.3,4158.8,0.6899]
[1758756860647,12.21686305,4159.3,4158.8,0.6899]
[1758756861170,12.09515071,4159.3,4158.8,0.6899]
[1758756861376,12.21440946,4159.3,4158.8,0.6899]
[1758756861534,12.44190946,4159.3,4158.8,0.6899]
[1758756862372,12.44190946,4159.3,4158.8,0.2412]
[1758756862373,12.91060946,4159.3,4158.8,0.2412]
[1758756862878,13.28765696,4159.3,4158.8,0.2412]
[1758756863572,12.81895696,4159.3,4158.8,0.2412]
[1758756865654,12.81895696,4159.3,4159.2,0.002]
[1758756868281,12.59145696,4159.3,4159.2,0.002]
[1758756868439,10.58845696,4159.3,4159.2,0.002]
[1758756868645,13.28765696,4159.3,4159.2,0.002]
[1758756869080,12.81895696,4159.3,4159.2,0.002]
[1758756869276,10.18720625,4159.3,4159.2,0.002]
[1758756869572,19.66499889,4159.3,4159.2,0.2432]
[1758756869774,19.66499889,4159.3,4159.2,0.002]
[1758756869976,15.25774818,4159.3,4159.2,0.2432]
[1758756870182,17.26074818,4159.3,4159.2,0.6919]
[1758756870777,10.0679475,4159.3,4159.2,0.6919]
[1758756871639,4.0669475,4159.3,4159.2,0.6919]
[1758756871835,8.0649475,4159.3,4159.2,0.2432]
[1758756872275,8.0649475,4159.3,4159.2,0.002]
[1758756877355,11.16539821,4159.3,4159.2,0.002]
[1758756878654,19.35487658,4159.3,4159.2,0.002]
[1758756879626,16.48192587,4159.3,4159.2,0.002]
[1758756879928,18.88617658,4159.3,4159.2,0.002]
[1758756882456,19.34757658,4159.3,4159.2,0.002]
[1758756883229,18.88617658,4159.3,4159.2,0.002]
[1758756883457,16.48192587,4159.3,4159.2,0.002]
[1758756884143,18.88617658,4159.3,4159.2,0.002]
[1758756884868,19.34757658,4159.3,4159.2,0.002]
[1758756885643,16.48192587,4159.3,4159.2,0.002]
[1758756886365,16.25442587,4159.3,4159.2,0.002]
[1758756886684,16.25442587,4159.3,4159.2,0.7082]
[1758756886965,16.25442587,4159.3,4159.2,0.2404]
[1758756887135,18.65867658,4159.3,4159.2,0.002]
[1758756889070,16.25442587,4159.3,4159.2,0.002]
[1758756889839,18.65867658,4159.3,4159.2,0.002]
[1758756890737,16.25442587,4159.3,4159.2,0.002]
[1758756892744,4.0669475,4159.3,4159.2,0.002]
[1758756892982,0.6899,4159.3,4159.2,0.48323805]
[1758756893189,0.6899,4159.3,4159.2,3.11250852]
[1758756895571,4.118,4159.4,4159.3,2.40425071]
[1758756895764,7.118,4159.4,4159.3,3.11045071]
[1758756895987,3.12,4159.4,4159.3,3.11045071]
[1758756896188,7.118,4159.4,4159.3,3.11045071]
[1758756896533,0.6899,4159.5,4159.4,2.40419291]
[1758756896679,3.0,4159.6,4159.5,2.40413511]
[1758756896881,3.0,4159.6,4159.5,3.11033511]
[1758756901997,3.001,4159.6,4159.5,3.11033511]
[1758756903284,3.001,4159.6,4159.3,0.55387592]
[1758756903605,3.001,4159.6,4159.2,0.002]
[1758756903606,8.18947837,4159.4,4159.2,0.002]
[1758756903790,4.118,4159.3,4159.2,0.002]
[1758756903997,4.3549,4159.3,4159.2,0.002]
[1758756904413,5.07797887,4159.3,4159.2,0.002]
[1758756904842,10.94192958,4159.3,4159.2,0.002]
[1758756911619,10.48222958,4159.3,4159.2,0.002]
[1758756912426,10.95272958,4159.3,4159.2,0.002]
[1758756915217,10.48222958,4159.3,4159.2,0.002]
[1758756915421,10.95272958,4159.3,4159.2,0.002]
[1758756917040,10.48222958,4159.3,4159.2,0.002]
[1758756918125,6.24732958,4159.3,4159.2,0.002]
[1758756918425,12.24832958,4159.3,4159.2,0.002]
[1758756918942,12.96022958,4159.3,4159.2,0.002]
[1758756923029,12.48972958,4159.3,4159.2,0.002]
[1758756923331,12.24832958,4159.3,4159.2,0.002]
[1758756923833,3.84307887,4159.3,4159.2,0.2278]
[1758756923992,9.84407887,4159.3,4159.2,0.657]
[1758756924192,12.24832958,4159.3,4159.2,0.657]
[1758756924422,12.24832958,4159.3,4159.2,0.2278]
[1758756924929,12.24832958,4159.3,4159.2,0.002]
[1758756925136,12.48972958,4159.3,4159.2,0.002]
[1758756925594,12.24832958,4159.3,4159.2,0.002]
[1758756927765,9.84407887,4159.3,4159.2,0.002]
[1758756928059,7.84107887,4159.3,4159.2,0.657]
[1758756928222,7.84107887,4159.3,4159.2,3.06130852]
[1758756928223,3.84307887,4159.3,4159.2,3.06130852]
[1758756928424,4.118,4159.3,4159.2,3.36963937]
[1758756928633,0.12,4159.3,4159.2,3.36963937]
[1758756928863,3.12,4159.3,4159.2,3.36963937]
[1758756931725,3.12,4159.3,4159.2,0.96533085]
[1758756931924,3.12,4159.3,4159.2,3.06130852]
[1758756933558,4.118,4159.3,4159.2,3.06130852]
[1758756934073,3.12,4159.3,4159.2,3.06130852]
[1758756936027,3.0,4159.3,4159.2,3.06130852]
[1758756936636,0.7230353,4159.5,4159.2,3.06130852]
[1758756936838,3.0,4159.3,4159.2,2.40630852]
[1758756937287,16.30862908,4159.3,4159.2,0.002]
[1758756937566,16.61505697,4159.3,4159.2,0.002]
[1758756938142,16.30862908,4159.3,4159.2,0.002]
[1758756938761,15.19708672,4159.3,4159.2,0.002]
[1758756939152,15.85208672,4159.3,4159.2,0.002]
[1758756943368,16.09298672,4159.3,4159.2,0.002]
[1758756943563,15.85208672,4159.3,4159.2,0.002]
[1758756953292,16.22913664,4159.3,4159.2,0.002]
[1758756955405,15.51723664,4159.3,4159.2,0.002]
[1758756955565,15.75543664,4159.3,4159.2,0.002]
[1758756956506,15.51723664,4159.3,4159.2,0.002]
[1758756956711,15.75543664,4159.3,4159.2,0.002]
[1758756956908,16.22943664,4159.3,4159.2,0.002]
[1758756957875,15.75543664,4159.3,4159.2,0.002]
[1758756959492,16.22943664,4159.3,4159.2,0.002]
[1758756959926,15.85238672,4159.3,4159.2,0.002]
[1758756963016,16.22944291,4159.3,4159.2,0.002]
[1758756969711,15.85238672,4159.3,4159.2,0.002]
[1758756970822,15.37838672,4159.3,4159.2,0.002]
[1758756971024,15.81038672,4159.3,4159.2,0.002]
[1758756971838,15.37838672,4159.3,4159.2,0.002]
[1758756976040,15.14018672,4159.3,4159.2,0.002]
[1758756977247,15.51724583,4159.3,4159.2,0.002]
[1758756979862,15.14018672,4159.3,4159.2,0.002]
[1758756983475,13.13718672,4159.3,4159.2,0.002]
[1758756983644,19.13918672,4159.3,4159.2,0.002]
[1758756984973,19.37688672,4159.3,4159.2,0.002]
[1758756988675,19.75394459,4159.3,4159.2,0.002]
[1758756989078,19.51624459,4159.3,4159.2,0.002]
[1758756991356,19.13918672,4159.3,4159.2,0.002]
[1758756993159,19.37688672,4159.3,4159.2,0.002]
[1758756994265,19.13918672,4159.3,4159.2,0.002]
[1758756994661,19.51625728,4159.3,4159.2,0.002]
[1758756995069,19.51625728,4159.3,4159.2,0.2512]
[1758756995402,19.51625728,4159.3,4159.2,0.002]
[1758756996267,19.51625728,4159.3,4159.2,0.2512]
[1758756996602,19.51625728,4159.3,4159.2,0.002]
[1758756997522,19.75395728,4159.3,4159.2,0.002]
[1758756998625,20.86670312,4159.3,4159.2,0.002]
[1758756999241,20.62900312,4159.3,4159.2,0.002]
[1758756999887,20.25193256,4159.3,4159.2,0.002]
[1758757001634,20.48963256,4159.3,4159.2,0.002]
[1758757003243,20.96073256,4159.3,4159.2,0.002]
[1758757005227,20.96073256,4159.3,4159.1,0.022]
[1758757005529,20.96073256,4159.3,4158.7,0.002]
[1758757005530,2.40446735,4159.0,4158.7,0.002]
[1758757005738,11.19068185,4158.8,4158.7,0.002]
[1758757005890,13.59522162,4158.8,4158.7,0.002]
[1758757006417,14.28012162,4158.8,4158.7,0.002]
[1758757011018,16.28412162,4158.8,4158.7,0.002]
[1758757016825,16.28412162,4158.8,4158.7,0.2456]
[1758757016826,0.6849,4158.8,4158.7,0.2456]
[1758757017023,0.6849,4158.8,4158.7,3.09149759]
[1758757017225,0.37807148,4159.3,4158.8,2.40453977]
[1758757017226,0.12,4159.1,4158.8,2.40453977]
[1758757017421,0.001,4159.3,4158.9,15.17344481]
[1758757017657,0.001,4159.3,4159.0,2.4043776]
[1758757017857,0.001,4159.3,4159.1,0.02404366]
[1758757018058,0.72408932,4159.3,4159.2,2.40430852]
[1758757018268,0.001,4159.3,4159.2,4.41212062]
[1758757018429,0.001,4159.3,4159.2,5.06152062]
[1758757021069,0.001,4159.3,4159.2,3.05370852]
[1758757021269,0.72402485,4159.3,4159.2,3.05370852]
[1758757021941,0.72402485,4159.3,4159.2,3.8697516]
[1758757022144,0.001,4159.3,4159.2,3.8697516]
[1758757022349,0.001,4159.3,4159.2,3.9897516]
[1758757022548,0.001,4159.3,4159.2,19.20146474]
[1758757022744,0.001,4159.3,4159.2,19.17742166]
[1758757028554,0.001,4159.3,4159.2,19.27481731]
[1758757029146,0.001,4159.3,4159.2,18.62541731]
[1758757030263,0.001,4159.3,4159.2,18.83351731]
[1758757030477,0.001,4159.3,4159.2,18.62541731]
[1758757031353,0.001,4159.3,4159.2,19.18382166]
[1758757035587,0.001,4159.3,4159.2,19.28121731]
[1758757037087,0.001,4159.3,4159.2,18.52802166]
[1758757037265,0.001,4159.3,4159.2,18.62541731]
[1758757037464,0.001,4159.3,4159.2,18.52802166]
[1758757039594,0.001,4159.3,4159.2,19.17822166]
[1758757039891,0.001,4159.3,4159.2,18.52802166]
[1758757040193,0.001,4159.3,4159.2,19.17822166]
[1758757041764,0.001,4159.3,4159.2,19.27460732]
[1758757044998,0.001,4159.3,4159.2,21.61102166]
[1758757045195,0.001,4159.3,4159.2,22.40302166]
[1758757045693,0.001,4159.3,4159.2,22.49941452]
[1758757048906,0.001,4159.3,4159.2,8.20761452]
[1758757049213,0.001,4159.3,4159.2,8.64961452]
[1758757049413,0.001,4159.3,4159.2,22.49941452]
[1758757049919,0.001,4159.3,4159.2,23.14961452]
[1758757052315,0.001,4159.3,4159.2,8.64961452]
[1758757052879,0.001,4159.3,4159.2,23.14961452]
[1758757054903,0.001,4159.3,4159.2,23.26961452]
[1758757058892,0.2491,4160.6,4160.0,3.19584615]
[1758757059092,0.2491,4160.6,4160.0,7.89386106]
[1758757059427,0.2491,4160.6,4160.0,8.5200226]
[1758757059612,0.2491,4160.6,4160.0,23.11639061]
[1758757060017,0.001,4160.6,4160.0,23.11639061]
[1758757060402,0.001,4160.6,4160.5,3.19555726]
[1758757060589,0.001,4160.6,4160.5,7.33359283]
[1758757060794,0.001,4160.6,4160.5,8.93347969]
[1758757060991,0.001,4160.6,4160.5,9.02983098]
[1758757062538,0.001,4160.6,4160.5,8.37963098]
[1758757063336,0.001,4160.6,4160.5,9.04773098]
[1758757065646,0.001,4161.1,4161.0,3.19526844]
[1758757065936,0.001,4161.1,4161.0,7.86912959]
[1758757066111,0.001,4161.1,4161.0,8.53722959]
[1758757066306,0.001,4161.1,4161.0,23.03722959]
[1758757067321,0.001,4161.1,4161.0,22.82902959]
[1758757067905,0.001,4161.1,4161.0,23.31025999]
[1758757068440,0.001,4161.1,4161.0,23.51845999]
[1758757068934,0.001,4161.1,4161.0,23.76635999]
[1758757069841,0.001,4161.1,4161.0,23.51845999]
[1758757073347,0.001,4161.1,4161.0,23.31025999]
[1758757074044,0.001,4161.1,4161.0,23.51845999]
[1758757074414,0.001,4161.1,4161.0,23.31025999]
[1758757074617,0.001,4161.1,4161.0,22.85035999]
[1758757082370,0.001,4161.1,4161.0,18.85635999]
[1758757082669,0.001,4161.1,4161.0,17.02326844]
[1758757082670,0.6855,4161.1,4161.0,17.02326844]
[1758757082834,0.6855,4161.1,4161.0,21.01526844]
[1758757083553,0.6855,4161.1,4161.0,21.80726844]
[1758757085850,0.6855,4161.1,4161.0,7.30726844]
[1758757086603,0.6855,4161.1,4161.0,21.80726844]
[1758757089455,0.6855,4161.1,4161.0,7.30726844]
[1758757090068,0.6855,4161.1,4161.0,21.80726844]
[1758757093092,0.6855,4161.1,4160.8,2.40334307]
[1758757093093,0.6855,4161.1,4160.8,3.992]
[1758757093259,0.001,4161.1,4161.0,2.40326844]
[1758757093772,0.4304,4161.1,4160.9,2.40331153]
[1758757093971,0.6763,4161.0,4160.9,2.40331153]
[1758757094277,0.6763,4161.0,4160.5,2.40555183]
[1758757094459,0.6763,4160.9,4160.6,3.992]
[1758757094654,0.001,4161.1,4160.8,2.40338396]
[1758757095058,0.001,4161.1,4160.6,3.992]
[1758757095294,0.001,4161.1,4161.0,2.40326844]
[1758757095474,0.001,4161.1,4161.0,7.21130112]
[1758757095668,0.001,4161.1,4161.0,7.18726844]
[1758757096073,0.001,4161.1,4161.0,7.86626844]
[1758757096802,0.001,4161.1,4161.0,21.68726844]
[1758757097003,0.001,4161.1,4161.0,24.07855459]
[1758757099212,0.6773,4161.1,4161.0,21.68726844]
[1758757100479,0.6773,4161.1,4161.0,6.39526844]
[1758757100673,0.6773,4161.1,4160.5,0.002]
[1758757100981,0.6773,4161.1,4160.7,2.40342136]
[1758757101180,0.6763,4161.0,4160.8,2.40337896]
[1758757101382,0.6763,4160.9,4160.6,6.39549323]
[1758757101595,0.6763,4160.8,4160.6,6.39549323]
[1758757101794,0.001,4161.1,4160.9,2.40332599]
[1758757102114,7.06619765,4161.0,4160.9,2.40332599]
[1758757102312,7.74249765,4161.0,4160.9,3.19532599]
[1758757102635,10.06719765,4161.1,4161.0,2.40326844]
[1758757102929,10.74349765,4161.1,4161.0,2.40326844]
[1758757103385,3.4304,4161.1,4161.0,2.40326844]
[1758757103585,10.06719765,4161.1,4161.0,2.40326844]
[1758757104113,0.001,4161.1,4161.0,3.19526844]
[1758757104288,0.001,4161.1,4161.0,3.63206175]
[1758757104490,0.2479,4161.1,4161.0,3.63206175]
[1758757104697,7.74349765,4161.1,4161.0,3.19526844]
[1758757108816,7.74349765,4161.1,4161.0,16.90326844]
[1758757111907,7.31409765,4161.1,4161.0,16.90326844]
[1758757112098,7.31409765,4161.1,4161.0,2.40326844]
[1758757114240,7.74349765,4161.1,4161.0,2.40326844]
[1758757118949,7.74349765,4161.1,4161.0,16.90326844]
[1758757121861,0.001,4161.1,4161.0,16.90326844]
[1758757122164,7.06719765,4161.1,4161.0,19.24533339]
[1758757122664,0.001,4161.1,4161.0,19.24533339]
[1758757126185,0.001,4161.1,4161.0,14.5]
[1758757126385,8.41405147,4161.1,4161.0,18.492]
[1758757126551,8.84415147,4161.1,4161.0,18.492]
[1758757126755,8.84415147,4161.1,4160.9,6.39532419]
[1758757126950,0.664,4161.0,4160.9,6.39532419]
[1758757127366,0.664,4161.0,4160.9,6.34532419]
[1758757128656,8.18015147,4161.1,4161.0,2.40326844]
[1758757129080,8.61025147,4161.1,4161.0,2.40326844]
[1758757129483,8.84415147,4161.1,4161.0,2.40326844]
[1758757132397,8.41405147,4161.1,4161.0,2.42730112]
[1758757136098,8.84415147,4161.1,4161.0,2.42730112]
[1758757137406,8.41405147,4161.1,4161.0,2.42730112]
[1758757138098,8.84415147,4161.1,4161.0,2.42730112]
[1758757141009,8.84295147,4161.1,4161.0,2.42730112]
[1758757142780,0.6638,4161.1,4161.0,2.42730112]
[1758757143180,0.001,4161.1,4161.0,2.40326844]
[1758757143910,8.18015147,4161.1,4161.0,2.40326844]
[1758757144093,8.83715147,4161.1,4161.0,2.40326844]
[1758757144984,8.83715147,4161.1,4160.8,3.994]
[1758757145191,0.657,4161.0,4160.8,3.994]
[1758757145401,0.4289,4160.9,4160.8,6.39737525]
[1758757145995,0.2281,4160.9,4160.8,6.39737525]
[1758757146180,0.657,4160.9,4160.8,6.39737525]
[1758757146380,0.657,4160.9,4160.8,2.40537525]
[1758757150123,12.40025147,4161.1,4161.0,2.40326844]
[1758757150282,12.17215147,4161.1,4161.0,2.40326844]
[1758757150900,12.82915147,4161.1,4161.0,2.40326844]
[1758757152323,15.82915147,4161.1,4161.0,2.40326844]
[1758757153897,15.82915147,4161.1,4160.8,0.002]
[1758757154101,15.17215147,4161.1,4160.8,2.40537064]
[1758757154302,0.6904,4161.0,4160.8,2.40537064]
[1758757154498,0.4611,4161.0,4160.9,2.4033262]
[1758757154698,0.4611,4161.0,4160.8,2.40537762]
[1758757154924,0.4611,4161.0,4160.9,2.4033262]
[1758757155090,0.4611,4161.0,4160.8,2.40537249]
[1758757155291,15.17215147,4161.1,4161.0,2.40326844]
[1758757155488,15.63325147,4161.1,4160.8,2.40534521]
[1758757155723,0.6904,4161.0,4160.8,2.40537752]
[1758757155925,0.2293,4160.9,4160.8,2.40537752]
[1758757157223,0.2293,4160.9,4160.8,0.002]
[1758757157929,0.6904,4160.9,4160.8,0.002]
[1758757158803,4.2213,4160.9,4160.8,0.002]
[1758757159001,2.40349949,4160.6,4160.5,0.002]
[1758757159207,17.57465096,4160.6,4160.5,0.002]
[1758757159428,18.26505096,4160.6,4160.5,0.002]
[1758757160197,18.36144638,4160.6,4160.5,0.002]
[1758757161329,18.36144638,4160.6,4160.0,0.002]
[1758757161330,2.40378837,4160.1,4160.0,0.002]
[1758757161533,13.58317099,4159.7,4159.1,0.022]
[1758757161831,17.57517099,4159.7,4159.1,0.022]
[1758757162027,18.64254928,4159.7,4159.1,0.022]
[1758757166407,13.96014928,4159.7,4159.1,0.022]
[1758757166602,15.54812976,4159.7,4159.2,2.40425444]
[1758757166819,15.54812976,4159.7,4159.4,0.6762]
[1758757167044,15.54812976,4159.7,4159.2,0.6762]
[1758757167544,18.18144928,4159.7,4159.2,0.6762]
[1758757167849,18.18144928,4159.7,4159.1,0.022]
[1758757168034,18.64254928,4159.7,4159.1,0.022]
[1758757169553,18.26557099,4159.7,4159.1,0.022]
[1758757174741,3.12,4159.6,4159.1,0.022]
[1758757174973,13.58345999,4159.2,4159.1,0.022]
[1758757175175,17.57645999,4159.2,4159.1,0.022]
[1758757175476,18.26685999,4159.2,4159.1,0.022]
[1758757177635,11.17915147,4159.2,4159.1,0.022]
[1758757177999,6.993,4159.2,4159.1,0.6982]
[1758757179263,6.993,4159.2,4159.1,0.022]
[1758757179891,3.0,4159.2,4159.1,2.42636632]
[1758757180075,6.993,4159.2,4159.1,3.10256632]
[1758757181159,6.993,4159.2,4159.1,0.6982]
[1758757181479,6.993,4159.2,4159.1,0.022]
[1758757182216,3.0,4159.2,4159.1,3.09196632]
[1758757182376,15.17215147,4159.2,4159.1,0.022]
[1758757182579,14.7579707,4159.2,4159.1,0.022]
[1758757183815,17.16227922,4159.2,4159.1,0.022]
[1758757184406,14.0726707,4159.2,4159.1,0.022]
[1758757184604,14.0726707,4159.2,4159.1,3.09196632]
[1758757184605,3.0,4159.2,4159.1,3.09196632]
[1758757184905,6.993,4159.2,4159.1,3.09196632]
[1758757185103,6.993,4159.2,4159.1,3.64180999]
[1758757185711,6.993,4159.2,4159.1,1.23744367]
[1758757185928,6.993,4159.2,4159.1,0.6876]
[1758757186483,3.0,4159.2,4159.1,0.6876]
[1758757186689,6.993,4159.2,4159.1,0.6876]
[1758757188131,6.993,4159.2,4159.1,0.022]
[1758757188989,9.63340852,4159.2,4159.1,0.022]
[1758757189319,10.08260852,4159.2,4159.1,0.022]
[1758757207613,5.40438792,4159.1,4158.6,0.002]
[1758757207805,5.40438792,4159.1,4158.3,0.002]
[1758757207806,12.48444176,4158.4,4158.3,0.002]
[1758757208017,18.48144176,4158.4,4158.3,0.002]
[1758757208222,19.15484176,4158.4,4158.3,0.002]
[1758757211010,18.82922336,4158.4,4158.3,0.002]
[1758757211206,18.60302336,4158.4,4158.3,0.002]
[1758757211407,18.60402336,4158.4,4158.3,0.002]
[1758757212004,18.84512336,4158.4,4158.3,0.002]
[1758757213709,19.29342336,4158.4,4158.3,0.002]
[1758757218501,19.67055103,4158.4,4158.3,0.002]
[1758757219774,19.29342336,4158.4,4158.3,0.002]
[1758757223194,19.67054897,4158.4,4158.3,0.002]
[1758757223836,18.98114897,4158.4,4158.3,0.002]
[1758757224002,19.67054897,4158.4,4158.3,0.002]
[1758757226035,19.22224897,4158.4,4158.3,0.002]
[1758757226455,18.98114897,4158.4,4158.3,0.002]
[1758757227133,19.22224897,4158.4,4158.3,0.002]
[1758757227331,19.67054897,4158.4,4158.3,0.002]
[1758757227839,2.4050024,4158.0,4157.9,0.002]
[1758757228054,23.5583438,4158.0,4157.9,0.002]
[1758757228244,23.7994438,4158.0,4157.9,0.002]
[1758757228443,5.52506024,4157.9,4156.5,0.12]
[1758757228738,22.14916929,4158.0,4156.6,2.40580849]
[1758757228739,3.0,4157.3,4156.6,2.40580849]
[1758757228927,3.997,4157.2,4156.9,0.4626]
[1758757229270,3.997,4157.2,4156.1,14.52]
[1758757229271,6.40246521,4157.2,4156.1,0.02]
[1758757229472,6.40246521,4157.2,4156.7,0.2082]
[1758757229643,6.40246521,4157.2,4156.7,0.6708]
[1758757230242,3.72358289,4157.3,4156.9,0.6708]
[1758757230446,16.0806707,4157.2,4156.1,0.02]
[1758757230659,10.0796707,4157.2,4156.5,2.40586447]
[1758757230869,14.0766707,4157.2,4156.7,2.40571707]
[1758757231183,12.48513591,4157.2,4157.1,0.6908]
[1758757231379,16.48313591,4157.2,4157.1,0.6908]
[1758757232179,14.0776707,4157.2,4157.1,0.6908]
[1758757232548,16.48313591,4157.2,4157.1,0.6908]
[1758757232743,14.0776707,4157.2,4157.1,0.6908]
[1758757233846,16.48313591,4157.2,4157.1,0.6908]
[1758757234665,10.0796707,4157.2,4157.1,0.6908]
[1758757234877,16.48413591,4157.2,4157.1,0.6908]
[1758757235175,14.0786707,4157.2,4157.1,0.6908]
[1758757235472,3.0,4157.2,4157.1,0.6908]
[1758757235777,6.999,4157.2,4157.1,0.6908]
[1758757236152,3.0,4157.2,4157.1,0.6908]
[1758757236487,6.999,4157.2,4157.1,0.6908]
[1758757236980,6.999,4157.2,4157.1,0.6928]
[1758757237682,14.0786707,4157.2,4157.1,0.6928]
[1758757240949,2.40475175,4158.5,4157.7,2.40517593]
[1758757241287,2.40475175,4158.5,4157.1,1.00264328]
[1758757241288,0.12,4158.0,4157.9,2.40506024]
[1758757241438,4.12,4158.0,4157.9,3.07586024]
[1758757241633,7.12,4158.0,4157.9,3.07586024]
[1758757242413,0.12,4158.0,4157.9,3.07586024]
[1758757242593,0.001,4158.6,4158.5,2.40471323]
[1758757242794,0.001,4158.6,4157.9,3.62395959]
[1758757242795,0.12,4158.5,4158.0,0.662]
[1758757242984,4.0,4158.4,4158.3,2.40482889]
[1758757243187,0.12,4158.5,4158.4,2.40477106]
[1758757243509,0.001,4158.6,4158.5,2.40471323]
[1758757243799,0.001,4158.6,4158.5,3.06671323]
[1758757245399,0.001,4158.6,4158.5,3.61386166]
[1758757247291,0.001,4158.6,4158.5,3.06671323]
[1758757248377,0.001,4158.6,4158.5,2.61291323]
[1758757248798,0.001,4158.6,4158.5,2.40471323]
[1758757249598,0.001,4158.6,4158.5,3.06671323]
[1758757252106,0.001,4158.6,4158.5,2.40471323]
[1758757252896,0.001,4158.6,4158.5,2.61291323]
[1758757253172,0.001,4158.6,4158.5,2.40471323]
[1758757253503,0.001,4158.6,4158.5,3.06671323]
[1758757254198,0.001,4158.6,4158.5,2.40471323]
[1758757254717,0.001,4158.6,4158.3,14.5]
[1758757254718,3.999,4158.6,4158.3,14.5]
[1758757255017,0.674,4158.5,4158.3,14.5]
[1758757255236,0.674,4158.5,4158.0,0.12]
[1758757255237,0.674,4158.4,4158.0,0.12]
[1758757255403,12.18751655,4158.3,4157.8,2.40506946]
[1758757255719,12.18751655,4158.3,4157.8,2.40706946]
[1758757255720,0.12,4158.1,4157.8,2.40706946]
[1758757255929,3.998,4158.0,4157.9,2.40505089]
[1758757256715,3.998,4158.0,4157.8,0.002]
[1758757256948,3.998,4158.0,4157.9,2.40506024]
[1758757260209,0.12,4158.1,4157.8,0.002]
[1758757260439,0.12,4158.1,4158.0,2.4050024]
[1758757261622,0.12,4158.1,4157.8,2.40706641]
[1758757261828,0.3651,4158.1,4157.8,2.40706641]
[1758757262022,0.3651,4158.1,4157.9,2.40503384]
[1758757262932,0.7009,4158.0,4157.8,0.002]
[1758757263449,0.2451,4158.0,4157.8,0.002]
[1758757263608,0.2451,4158.0,4157.8,2.40710185]
[1758757264122,0.2451,4158.0,4157.9,2.40506024]
[1758757264456,0.2451,4158.0,4157.8,2.40709784]
[1758757264627,0.2451,4158.0,4157.8,0.002]
[1758757264833,0.12,4158.1,4158.0,2.4050024]
[1758757265943,0.12,4158.1,4157.9,2.40505443]
[1758757266114,0.3651,4158.1,4157.8,2.40711716]
[1758757266439,0.7009,4158.0,4157.8,0.002]
[1758757266816,0.4558,4157.9,4157.8,0.002]
[1758757267341,0.7009,4157.9,4157.8,2.40711809]
[1758757267548,0.7009,4157.9,4157.8,0.002]
[1758757269253,0.2451,4157.9,4157.8,2.40711809]
[1758757269435,3.12,4158.1,4157.9,2.40504728]
[1758757269636,0.2451,4158.0,4157.9,2.40504728]
[1758757270061,0.2451,4158.0,4157.8,2.40709945]
[1758757272120,0.2451,4158.0,4157.9,2.40506024]
[1758757272538,0.2451,4158.0,4157.8,2.40710192]
[1758757273154,0.6813,4158.0,4157.8,0.002]
[1758757273358,0.2257,4157.9,4157.8,0.002]
[1758757273558,4.6579,4157.9,4157.8,0.002]
[1758757273861,10.06296024,4157.9,4157.8,0.002]
[1758757274355,12.06696024,4157.9,4157.8,0.002]
[1758757274562,12.44412522,4157.9,4157.8,0.002]
[1758757275741,12.06696024,4157.9,4157.8,0.002]
[1758757282360,5.63076024,4157.9,4157.8,0.002]
[1758757282577,11.63076024,4157.9,4157.8,0.002]
[1758757283689,12.06696024,4157.9,4157.8,0.002]
[1758757284868,12.37338813,4157.9,4157.8,0.002]
[1758757285410,2.40529164,4157.5,4157.4,0.002]
[1758757285603,17.59280819,4157.5,4157.4,0.002]
[1758757285817,18.25470819,4157.5,4157.4,0.002]
[1758757285969,18.72841437,4157.5,4157.4,0.002]
[1758757286616,18.06651437,4157.5,4157.4,0.002]
[1758757287270,18.29221437,4157.5,4157.4,0.002]
[1758757288008,18.06651437,4157.5,4157.4,0.002]
[1758757288207,7.47170618,4157.5,4157.4,0.002]
[1758757288412,7.37523009,4157.5,4157.4,0.6584]
[1758757288580,7.37523009,4157.5,4157.4,0.2102]
[1758757288911,7.37523009,4157.5,4157.4,0.002]
[1758757289207,9.78052173,4157.5,4157.4,0.002]
[1758757289383,17.97003828,4157.5,4157.4,0.002]
[1758757290106,6.998,4157.5,4157.4,0.002]
[1758757290270,6.998,4157.5,4157.4,0.6584]
[1758757291297,9.40329164,4157.5,4157.4,0.6584]
[1758757291535,9.40329164,4157.5,4157.4,0.002]
[1758757292038,7.6564,4157.5,4157.4,0.002]
[1758757292439,3.998,4157.5,4157.4,0.6584]
[1758757293733,3.998,4157.5,4157.4,0.002]